fUST/lending_fUST_20240503
["ID","MTS","AMOUNT","RATE_DAILY","PERIOD"]
[325292057,1714684242644,-4418.461956,0.00039798,2]
[325292059,1714684242654,-4418.461956,0.00039798,2]
[325292061,1714684242664,-4418.461956,0.00039798,2]
[325292063,1714684242672,-2501.001892,0.00039798,2]
[325292065,1714684242682,-2501.001892,0.00039798,2]
[325292067,1714684242691,-2501.001892,0.00039798,2]
[325292068,1714684242700,-2501.001892,0.00039798,2]
[325292071,1714684242710,-151.0,0.00039798,2]
[325292073,1714684242719,-151.0,0.00039798,2]
[325292075,1714684242728,-1356.557757,0.00039798,2]
[325292077,1714684242739,-1356.557757,0.00039798,2]
[325292079,1714684242748,-151.0,0.00039798,2]
[325292081,1714684242758,-1356.557757,0.00039798,2]
[325292083,1714684242767,-151.0,0.00039798,2]
[325292085,1714684242778,-1356.557757,0.00039798,2]
[325292087,1714684242787,-151.0,0.00039798,2]
[325292089,1714684242796,-151.0,0.00039798,2]
[325292091,1714684242805,-223.464797,0.00039798,2]
[325292093,1714684242814,-223.464797,0.00039798,2]
[325292095,1714684242823,-223.464797,0.00039798,2]
[325292097,1714684242832,-223.464797,0.00039798,2]
[325292099,1714684242841,-262.445648,0.00039798,2]
[325292101,1714684242851,-1538.427354,0.00039798,2]
[325292103,1714684242860,-1538.427354,0.00039798,2]
[325292105,1714684242869,-151.0,0.00039798,2]
[325292107,1714684242880,-151.0,0.00039798,2]
[325292109,1714684242891,-1538.427354,0.00039798,2]
[325292111,1714684242901,-1538.427354,0.00039798,2]
[325292113,1714684242910,-3078.316538,0.00039798,2]
[325292115,1714684242919,-3078.316538,0.00039798,2]
[325292117,1714684242928,-3078.316538,0.00039798,2]
[325292119,1714684242938,-3078.316538,0.00039798,2]
[325292121,1714684242947,-305.785247,0.000398,2]
[325292123,1714684242956,-154.494341,0.000398,2]
[325292125,1714684242966,-154.494341,0.000398,2]
[325292127,1714684242976,-151.0,0.000398,2]
[325292129,1714684242985,-151.0,0.000398,2]
[325292131,1714684242994,-193.802651,0.000398,2]
[325292133,1714684243003,-193.802651,0.000398,2]
[325292135,1714684243013,-399.399469,0.000398,2]
[325292137,1714684243024,-399.399469,0.000398,2]
[325292139,1714684243034,-743.287968,0.000398,2]
[325292141,1714684243043,-743.287968,0.000398,2]
[325292143,1714684243053,-151.0,0.000398,2]
[325292145,1714684243062,-151.0,0.000398,2]
[325292148,1714684243071,-244.475514,0.000398,2]
[325292151,1714684243081,-244.475514,0.000398,2]
[325292153,1714684243091,-151.0,0.000398,2]
[325292155,1714684243100,-185.114727,0.000398,2]
[325292158,1714684243110,-185.114727,0.000398,2]
[325292160,1714684243124,-255.560288,0.000398,2]
[325292163,1714684243133,-255.560288,0.000398,2]
[325292166,1714684243143,-249.407076,0.000398,2]
[325292169,1714684243155,-249.407076,0.000398,2]
[325292172,1714684243166,-151.0,0.000398,2]
[325292174,1714684243175,-151.0,0.000398,2]
[325292176,1714684243184,-151.0,0.000398,2]
[325292178,1714684243195,-151.0,0.000398,2]
[325292180,1714684243204,-151.0,0.000398,2]
[325292182,1714684243214,-6673.758692,0.000398,2]
[325292184,1714684243223,-6673.758692,0.000398,2]
[325292186,1714684243233,-1294.321633,0.000398,2]
[325292188,1714684243242,-1294.321633,0.000398,2]
[325292190,1714684243252,-151.0,0.000398,2]
[325292192,1714684243261,-151.0,0.000398,2]
[325292194,1714684243272,-762.620592,0.000398,2]
[325292196,1714684243281,-762.620592,0.000398,2]
[325292198,1714684243290,-463.95936,0.000398,2]
[325292200,1714684243299,-237.594098,0.000398,2]
[325292202,1714684243309,-463.95936,0.000398,2]
[325292204,1714684243318,-237.594098,0.000398,2]
[325292206,1714684243327,-151.0,0.000398,2]
[325292208,1714684243336,-151.0,0.000398,2]
[325292210,1714684243345,-151.0,0.000398,2]
[325292212,1714684243355,-4418.461956,0.000398,2]
[325292214,1714684243364,-4418.461956,0.000398,2]
[325292216,1714684243373,-2501.001892,0.000398,2]
[325292218,1714684243382,-2501.001892,0.000398,2]
[325292220,1714684243391,-151.0,0.000398,2]
[325292222,1714684243400,-1356.557757,0.000398,2]
[325292224,1714684243409,-161.96618,0.000398,2]
[325292226,1714684243419,-1356.557757,0.000398,2]
[325292228,1714684243429,-223.464797,0.000398,2]
[325292230,1714684243439,-151.0,0.000398,2]
[325292232,1714684243448,-223.464797,0.000398,2]
[325292234,1714684243457,-1538.427354,0.000398,2]
[325292236,1714684243467,-196.312664,0.000398,2]
[325292238,1714684243476,-1538.427354,0.000398,2]
[325292240,1714684243486,-3078.316538,0.000398,2]
[325292242,1714684243495,-3078.316538,0.000398,2]
[325292244,1714684243505,-2849.10156421,0.00039857,10]
[325292246,1714684243515,-1801.78864122,0.00039857,4]
[325292249,1714684243526,-7960.23012634,0.00039858,4]
[325292251,1714684243535,-466.5950793,0.00039858,4]
[325292252,1714684243544,-2428.95872116,0.00039858,7]
[325292253,1714684243554,-154.76784823,0.00039858,4]
[325292254,1714684243563,-312.80508109,0.00039858,4]
[325292255,1714684243572,-603.64448761,0.00039858,4]
[325292257,1714684243581,-314.71485559,0.00039858,4]
[325292259,1714684243590,-151.0,0.00039858,2]
[325292261,1714684243599,-185.114727,0.00039858,2]
[325292262,1714684243608,-185.114727,0.00039858,2]
[325292264,1714684243617,-255.560288,0.00039858,2]
[325292266,1714684243627,-255.560288,0.00039858,2]
[325292268,1714684243636,-249.407076,0.00039858,2]
[325292270,1714684243645,-249.407076,0.00039858,2]
[325292272,1714684243654,-151.0,0.00039858,2]
[325292274,1714684243663,-151.0,0.00039858,2]
[325292276,1714684243672,-151.0,0.00039858,2]
[325292278,1714684243681,-151.0,0.00039858,2]
[325292281,1714684243691,-284.28914,0.00039858,2]
[325292284,1714684243700,-151.0,0.00039858,2]
[325292286,1714684243709,-762.620592,0.00039858,2]
[325292288,1714684243718,-762.620592,0.00039858,2]
[325292290,1714684243727,-463.95936,0.00039858,2]
[325292296,1714684243737,-237.594098,0.00039858,2]
[325292300,1714684243746,-463.95936,0.00039858,2]
[325292306,1714684243756,-237.594098,0.00039858,2]
[325292309,1714684243766,-151.0,0.00039858,2]
[325292311,1714684243776,-151.0,0.00039858,2]
[325292314,1714684243785,-151.0,0.00039858,2]
[325292316,1714684243794,-4418.461956,0.00039858,2]
[325292318,1714684243803,-4418.461956,0.00039858,2]
[325292320,1714684243812,-2501.001892,0.00039858,2]
[325292322,1714684243822,-2501.001892,0.00039858,2]
[325292324,1714684243831,-151.0,0.00039858,2]
[325292326,1714684243840,-1356.557757,0.00039858,2]
[325292328,1714684243850,-1356.557757,0.00039858,2]
[325292330,1714684243859,-223.464797,0.00039858,2]
[325292332,1714684243868,-151.0,0.00039858,2]
[325292334,1714684243877,-223.464797,0.00039858,2]
[325292336,1714684243886,-1538.427354,0.00039858,2]
[325292338,1714684243895,-1538.427354,0.00039858,2]
[325292340,1714684243904,-3078.316538,0.00039858,2]
[325292342,1714684243915,-3078.316538,0.00039858,2]
[325292344,1714684243927,-151.0,0.00039859,2]
[325292347,1714684243937,-151.0,0.00039859,2]
[325292348,1714684243947,-193.802651,0.00039859,2]
[325292351,1714684243957,-193.802651,0.00039859,2]
[325292353,1714684243968,-399.399469,0.00039859,2]
[325292354,1714684243978,-399.399469,0.00039859,2]
[325292356,1714684243987,-743.287968,0.00039859,2]
[325292369,1714684244089,-743.287968,0.00039859,2]
[325292371,1714684244099,-151.0,0.00039859,2]
[325292373,1714684244108,-151.0,0.00039859,2]
[325292375,1714684244121,-244.475514,0.00039859,2]
[325292377,1714684244131,-244.475514,0.00039859,2]
[325292379,1714684244140,-999.0,0.00039859,7]
[325292381,1714684244151,-999.0,0.00039859,10]
[325292383,1714684244161,-999.0,0.00039859,13]
[325292385,1714684244170,-999.0,0.00039859,16]
[325292387,1714684244179,-999.0,0.00039859,19]
[325292389,1714684244189,-151.0,0.00039859,2]
[325292391,1714684244198,-6673.758692,0.00039859,2]
[325292393,1714684244210,-6673.758692,0.00039859,2]
[325292395,1714684244219,-1294.321633,0.00039859,2]
[325292397,1714684244229,-1294.321633,0.00039859,2]
[325292399,1714684244239,-151.0,0.00039859,2]
[325292401,1714684244248,-151.0,0.00039859,2]
[325292403,1714684244257,-4418.461956,0.00039859,2]
[325292405,1714684244266,-4418.461956,0.00039859,2]
[325292407,1714684244277,-2501.001892,0.00039859,2]
[325292409,1714684244287,-2501.001892,0.00039859,2]
[325292411,1714684244297,-151.0,0.00039859,2]
[325292413,1714684244306,-151.0,0.00039859,2]
[325292415,1714684244315,-3052.13238877,0.00039897,4]
[325292417,1714684244324,-1622.34234505,0.00039897,4]
[325292419,1714684244334,-249.407076,0.00039897,2]
[325292422,1714684244343,-249.407076,0.00039897,2]
[325292425,1714684244352,-151.0,0.00039897,2]
[325292428,1714684244361,-151.0,0.00039897,2]
[325292431,1714684244371,-151.0,0.00039897,2]
[325292433,1714684244380,-762.620592,0.00039897,2]
[325292436,1714684244389,-762.620592,0.00039897,2]
[325292438,1714684244399,-463.95936,0.00039897,2]
[325292440,1714684244409,-237.594098,0.00039897,2]
[325292442,1714684244418,-463.95936,0.00039897,2]
[325292444,1714684244427,-237.594098,0.00039897,2]
[325292446,1714684244437,-151.0,0.00039897,2]
[325292448,1714684244446,-308.84790387,0.00039898,4]
[325292450,1714684244455,-1356.557757,0.00039898,2]
[325292452,1714684244465,-1356.557757,0.00039898,2]
[325292454,1714684244474,-223.464797,0.00039898,2]
[325292456,1714684244484,-223.464797,0.00039898,2]
[325292458,1714684244494,-1538.427354,0.00039898,2]
[325292460,1714684244503,-1538.427354,0.00039898,2]
[325292462,1714684244513,-3078.316538,0.00039898,2]
[325292464,1714684244523,-1929.91585009,0.00039898,2]
[325292466,1714684244539,-1148.40068791,0.00039898,2]
[325292468,1714684244548,-999.0,0.00039899,22]
[325292470,1714684244557,-251.47719257,0.000399,31]
[325292472,1714684244566,-251.47719257,0.000399,31]
[325292474,1714684244575,-222.159548,0.000399,2]
[325292476,1714684244585,-222.159548,0.000399,2]
[325292478,1714684244595,-222.159548,0.000399,2]
[325292480,1714684244604,-222.159548,0.000399,2]
[325292482,1714684244614,-151.0,0.000399,2]
[325292484,1714684244623,-151.0,0.000399,2]
[325292486,1714684244633,-236.642721,0.000399,2]
[325292488,1714684244643,-305.785247,0.000399,2]
[325292490,1714684244652,-305.785247,0.000399,2]
[325292492,1714684244661,-305.785247,0.000399,2]
[325292494,1714684244670,-305.785247,0.000399,2]
[325292496,1714684244679,-154.494341,0.000399,2]
[325292498,1714684244688,-154.494341,0.000399,2]
[325292500,1714684244697,-154.494341,0.000399,2]
[325292502,1714684244706,-154.494341,0.000399,2]
[325292504,1714684244716,-154.494341,0.000399,2]
[325292506,1714684244725,-154.494341,0.000399,2]
[325292508,1714684244734,-154.494341,0.000399,2]
[325292510,1714684244743,-154.494341,0.000399,2]
[325292512,1714684244752,-151.0,0.000399,2]
[325292514,1714684244761,-151.0,0.000399,2]
[325292516,1714684244770,-151.0,0.000399,2]
[325292518,1714684244779,-151.0,0.000399,2]
[325292520,1714684244788,-247.0,0.000399,2]
[325292522,1714684244797,-193.802651,0.000399,2]
[325292524,1714684244806,-193.802651,0.000399,2]
[325292526,1714684244815,-193.802651,0.000399,2]
[325292528,1714684244824,-193.802651,0.000399,2]
[325292530,1714684244833,-193.802651,0.000399,2]
[325292532,1714684244842,-193.802651,0.000399,2]
[325292534,1714684244851,-193.802651,0.000399,2]
[325292536,1714684244862,-193.802651,0.000399,2]
[325292538,1714684244870,-399.399469,0.000399,2]
[325292540,1714684244879,-399.399469,0.000399,2]
[325292542,1714684244888,-399.399469,0.000399,2]
[325292544,1714684244897,-399.399469,0.000399,2]
[325292546,1714684244907,-399.399469,0.000399,2]
[325292548,1714684244915,-743.287968,0.000399,2]
[325292549,1714684244925,-399.399469,0.000399,2]
[325292551,1714684244936,-399.399469,0.000399,2]
[325292553,1714684244948,-743.287968,0.000399,2]
[325292555,1714684244958,-399.399469,0.000399,2]
[325292557,1714684244968,-743.287968,0.000399,2]
[325292559,1714684244977,-743.287968,0.000399,2]
[325292561,1714684244988,-743.287968,0.000399,2]
[325292563,1714684244998,-743.287968,0.000399,2]
[325292566,1714684245008,-743.287968,0.000399,2]
[325292567,1714684245017,-743.287968,0.000399,2]
[325292569,1714684245027,-151.0,0.000399,2]
[325292571,1714684245036,-151.0,0.000399,2]
[325292573,1714684245046,-151.0,0.000399,2]
[325292575,1714684245055,-151.0,0.000399,2]
[325292577,1714684245065,-151.0,0.000399,2]
[325292579,1714684245074,-151.0,0.000399,2]
[325292581,1714684245083,-151.0,0.000399,2]
[325292583,1714684245092,-151.0,0.000399,2]
[325292585,1714684245102,-244.475514,0.000399,2]
[325292587,1714684245112,-244.475514,0.000399,2]
[325292589,1714684245124,-244.475514,0.000399,2]
[325292591,1714684245136,-244.475514,0.000399,2]
[325292593,1714684245145,-244.475514,0.000399,2]
[325292595,1714684245157,-244.475514,0.000399,2]
[325292597,1714684245167,-244.475514,0.000399,2]
[325292599,1714684245176,-244.475514,0.000399,2]
[325292601,1714684245185,-151.0,0.000399,2]
[325292603,1714684245194,-151.0,0.000399,2]
[325292605,1714684245206,-151.0,0.000399,2]
[325292607,1714684245215,-151.0,0.000399,2]
[325292609,1714684245224,-185.114727,0.000399,2]
[325292611,1714684245233,-185.114727,0.000399,2]
[325292613,1714684245243,-185.114727,0.000399,2]
[325292615,1714684245252,-185.114727,0.000399,2]
[325292617,1714684245261,-185.114727,0.000399,2]
[325292619,1714684245270,-185.114727,0.000399,2]
[325292621,1714684245279,-185.114727,0.000399,2]
[325292623,1714684245288,-185.114727,0.000399,2]
[325292625,1714684245298,-255.560288,0.000399,2]
[325292627,1714684245308,-255.560288,0.000399,2]
[325292629,1714684245317,-255.560288,0.000399,2]
[325292631,1714684245326,-255.560288,0.000399,2]
[325292633,1714684245335,-255.560288,0.000399,2]
[325292635,1714684245344,-72.93565248,0.000399,2]
[325292671,1714684245665,-182.62463552,0.000399,2]
[325292673,1714684245674,-255.560288,0.000399,2]
[325292675,1714684245684,-255.560288,0.000399,2]
[325292677,1714684245693,-249.407076,0.000399,2]
[325292679,1714684245702,-249.407076,0.000399,2]
[325292681,1714684245711,-249.407076,0.000399,2]
[325292683,1714684245721,-249.407076,0.000399,2]
[325292685,1714684245731,-249.407076,0.000399,2]
[325292686,1714684245740,-249.407076,0.000399,2]
[325292688,1714684245749,-249.407076,0.000399,2]
[325292690,1714684245759,-249.407076,0.000399,2]
[325292692,1714684245768,-151.0,0.000399,2]
[325292694,1714684245778,-151.0,0.000399,2]
[325292696,1714684245788,-151.0,0.000399,2]
[325292698,1714684245798,-151.0,0.000399,2]
[325292700,1714684245807,-151.0,0.000399,2]
[325292702,1714684245817,-151.0,0.000399,2]
[325292704,1714684245826,-151.0,0.000399,2]
[325292706,1714684245835,-151.0,0.000399,2]
[325292708,1714684245844,-151.0,0.000399,2]
[325292710,1714684245854,-151.0,0.000399,2]
[325292712,1714684245864,-151.0,0.000399,2]
[325292715,1714684245875,-220.841311,0.000399,2]
[325292717,1714684245884,-6673.758692,0.000399,2]
[325292718,1714684245894,-6673.758692,0.000399,2]
[325292721,1714684245903,-6673.758692,0.000399,2]
[325292723,1714684245913,-6673.758692,0.000399,2]
[325292724,1714684245922,-6673.758692,0.000399,2]
[325292725,1714684245931,-6673.758692,0.000399,2]
[325292726,1714684245940,-6673.758692,0.000399,2]
[325292727,1714684245949,-6673.758692,0.000399,2]
[325292728,1714684245959,-6673.758692,0.000399,2]
[325292729,1714684245968,-6673.75868937,0.000399,2]
[325292730,1714684245979,-1294.321633,0.000399,2]
[325292731,1714684245987,-1294.321633,0.000399,2]
[325292732,1714684245996,-1294.321633,0.000399,2]
[325292733,1714684246005,-1294.321633,0.000399,2]
[325292734,1714684246015,-1294.321633,0.000399,2]
[325292735,1714684246024,-1294.321633,0.000399,2]
[325292736,1714684246033,-1294.321633,0.000399,2]
[325292737,1714684246042,-1294.321633,0.000399,2]
[325292738,1714684246051,-1294.321633,0.000399,2]
[325292739,1714684246060,-1294.321627,0.000399,2]
[325292740,1714684246069,-762.620592,0.000399,2]
[325292742,1714684246079,-762.620592,0.000399,2]
[325292744,1714684246088,-762.620592,0.000399,2]
[325292746,1714684246096,-762.620592,0.000399,2]
[325292747,1714684246106,-762.620592,0.000399,2]
[325292749,1714684246117,-762.620592,0.000399,2]
[325292751,1714684246128,-762.620592,0.000399,2]
[325292753,1714684246137,-762.620592,0.000399,2]
[325292755,1714684246146,-463.95936,0.000399,2]
[325292757,1714684246158,-463.95936,0.000399,2]
[325292760,1714684246168,-463.95936,0.000399,2]
[325292763,1714684246177,-237.594098,0.000399,2]
[325292765,1714684246188,-463.95936,0.000399,2]
[325292768,1714684246199,-237.594098,0.000399,2]
[325292772,1714684246209,-237.594098,0.000399,2]
[325292776,1714684246219,-237.594098,0.000399,2]
[325292780,1714684246228,-463.95936,0.000399,2]
[325292784,1714684246237,-463.95936,0.000399,2]
[325292788,1714684246246,-463.95936,0.000399,2]
[325292792,1714684246255,-237.594098,0.000399,2]
[325292795,1714684246265,-237.594098,0.000399,2]
[325292798,1714684246274,-463.95935,0.000399,2]
[325292800,1714684246283,-237.594098,0.000399,2]
[325292805,1714684246293,-237.594105,0.000399,2]
[325292809,1714684246303,-151.0,0.000399,2]
[325292812,1714684246312,-151.0,0.000399,2]
[325292814,1714684246321,-151.0,0.000399,2]
[325292816,1714684246330,-151.0,0.000399,2]
[325292819,1714684246339,-151.0,0.000399,2]
[325292822,1714684246348,-151.0,0.000399,2]
[325292824,1714684246357,-151.0,0.000399,2]
[325292827,1714684246366,-151.0,0.000399,2]
[325292830,1714684246375,-151.0,0.000399,2]
[325292833,1714684246384,-151.0,0.000399,2]
[325292836,1714684246393,-163.39787,0.000399,2]
[325292839,1714684246402,-4418.461956,0.000399,2]
[325292842,1714684246412,-4418.461956,0.000399,2]
[325292845,1714684246420,-4418.461956,0.000399,2]
[325292848,1714684246429,-4418.461956,0.000399,2]
[325292851,1714684246438,-4418.461956,0.000399,2]
[325292854,1714684246447,-4418.461956,0.000399,2]
[325292856,1714684246457,-4418.461956,0.000399,2]
[325292859,1714684246466,-4418.461947,0.000399,2]
[325292862,1714684246475,-2501.001892,0.000399,2]
[325292865,1714684246485,-2501.001892,0.000399,2]
[325292867,1714684246494,-2501.001892,0.000399,2]
[325292869,1714684246504,-2501.001892,0.000399,2]
[325292871,1714684246512,-2501.001892,0.000399,2]
[325292873,1714684246523,-2501.001892,0.000399,2]
[325292875,1714684246532,-2501.001892,0.000399,2]
[325292877,1714684246541,-2501.00189417,0.000399,2]
[325292879,1714684246551,-151.0,0.000399,2]
[325292881,1714684246560,-1356.557757,0.000399,2]
[325292883,1714684246569,-1356.557757,0.000399,2]
[325292885,1714684246578,-151.0,0.000399,2]
[325292887,1714684246587,-1356.557757,0.000399,2]
[325292889,1714684246596,-151.0,0.000399,2]
[325292891,1714684246605,-1356.557757,0.000399,2]
[325292893,1714684246614,-151.0,0.000399,2]
[325292895,1714684246623,-1356.557757,0.000399,2]
[325292897,1714684246633,-1356.557757,0.000399,2]
[325292899,1714684246642,-1356.557757,0.000399,2]
[325292900,1714684246651,-1356.557757,0.000399,2]
[325292902,1714684246660,-223.464797,0.000399,2]
[325292904,1714684246669,-223.464797,0.000399,2]
[325292906,1714684246678,-151.0,0.000399,2]
[325292908,1714684246687,-223.464797,0.000399,2]
[325292910,1714684246696,-223.464797,0.000399,2]
[325292912,1714684246706,-151.0,0.000399,2]
[325292915,1714684246715,-151.0,0.000399,2]
[325292918,1714684246725,-151.0,0.000399,2]
[325292921,1714684246734,-223.464797,0.000399,2]
[325292924,1714684246743,-223.464797,0.000399,2]
[325292927,1714684246752,-223.464797,0.000399,2]
[325292929,1714684246761,-223.464797,0.000399,2]
[325292932,1714684246770,-1538.427354,0.000399,2]
[325292934,1714684246781,-1538.427354,0.000399,2]
[325292936,1714684246791,-1538.427354,0.000399,2]
[325292938,1714684246800,-1538.427354,0.000399,2]
[325292940,1714684246809,-1538.427354,0.000399,2]
[325292942,1714684246819,-1538.427354,0.000399,2]
[325292944,1714684246828,-1538.427354,0.000399,2]
[325292946,1714684246836,-1538.427354,0.000399,2]
[325292948,1714684246846,-3078.316538,0.000399,2]
[325292950,1714684246855,-3078.316538,0.000399,2]
[325292952,1714684246864,-3078.316538,0.000399,2]
[325292954,1714684246874,-3078.316538,0.000399,2]
[325292956,1714684246883,-3078.316538,0.000399,2]
[325292957,1714684246891,-3078.316538,0.000399,2]
[325292969,1714684246902,-2849.73776359,0.000399,2]
[325292971,1714684247003,-228.57877441,0.000399,2]
[325292973,1714684247013,-3078.316538,0.000399,2]
[325292975,1714684247022,-150.0,0.00039912,2]
[325292977,1714684247032,-313.240326,0.00039913,2]
[325292979,1714684247041,-288.302869,0.00039913,2]
[325292981,1714684247051,-601.39156,0.0003992,2]
[325292983,1714684247060,-222.159548,0.00039959,2]
[325292985,1714684247068,-222.159548,0.00039959,2]
[325292987,1714684247078,-305.785247,0.00039959,2]
[325292989,1714684247087,-305.785247,0.00039959,2]
[325292991,1714684247096,-154.494341,0.00039959,2]
[325292993,1714684247106,-154.494341,0.00039959,2]
[325292995,1714684247115,-151.0,0.00039959,2]
[325292997,1714684247125,-193.802651,0.00039959,2]
[325292998,1714684247136,-193.802651,0.00039959,2]
[325293000,1714684247145,-399.399469,0.00039959,2]
[325293002,1714684247156,-399.399469,0.00039959,2]
[325293004,1714684247167,-743.287968,0.00039959,2]
[325293006,1714684247176,-743.287968,0.00039959,2]
[325293008,1714684247185,-151.0,0.00039959,2]
[325293010,1714684247195,-151.0,0.00039959,2]
[325293012,1714684247206,-244.475514,0.00039959,2]
[325293014,1714684247215,-244.475514,0.00039959,2]
[325293016,1714684247224,-151.0,0.00039959,2]
[325293018,1714684247233,-185.114727,0.00039959,2]
[325293020,1714684247243,-185.114727,0.00039959,2]
[325293022,1714684247252,-255.560288,0.00039959,2]
[325293024,1714684247261,-255.560288,0.00039959,2]
[325293026,1714684247270,-249.407076,0.00039959,2]
[325293028,1714684247281,-249.407076,0.00039959,2]
[325293030,1714684247290,-151.0,0.00039959,2]
[325293031,1714684247300,-200.651343,0.00039959,2]
[325293033,1714684247310,-1356.557757,0.00039959,2]
[325293035,1714684247319,-1356.557753,0.00039959,2]
[325293037,1714684247328,-223.464797,0.00039959,2]
[325293039,1714684247338,-223.464798,0.00039959,2]
[325293041,1714684247347,-1538.427354,0.00039959,2]
[325293043,1714684247357,-1538.427346,0.00039959,2]
[325293045,1714684247366,-3078.316538,0.00039959,2]
[325293047,1714684247376,-75221.6805522,0.0003996,2]
[325293049,1714684247385,-222.159548,0.0003996,2]
[325293051,1714684247394,-222.159548,0.0003996,2]
[325293053,1714684247403,-222.159548,0.0003996,2]
[325293055,1714684247412,-222.159548,0.0003996,2]
[325293057,1714684247422,-222.159548,0.0003996,2]
[325293059,1714684247431,-222.159548,0.0003996,2]
[325293061,1714684247440,-222.159548,0.0003996,2]
[325293063,1714684247449,-222.159548,0.0003996,2]
[325293065,1714684247459,-222.159548,0.0003996,2]
[325293067,1714684247468,-222.159548,0.0003996,2]
[325293069,1714684247477,-222.159548,0.0003996,2]
[325293071,1714684247486,-222.159548,0.0003996,2]
[325293073,1714684247495,-305.785247,0.0003996,2]
[325293075,1714684247504,-305.785247,0.0003996,2]
[325293076,1714684247514,-305.785247,0.0003996,2]
[325293078,1714684247524,-305.785247,0.0003996,2]
[325293080,1714684247533,-305.785247,0.0003996,2]
[325293082,1714684247543,-305.785242,0.0003996,2]
[325293085,1714684247552,-154.494341,0.0003996,2]
[325293086,1714684247561,-154.494341,0.0003996,2]
[325293089,1714684247572,-154.494341,0.0003996,2]
[325293090,1714684247581,-154.494341,0.0003996,2]
[325293092,1714684247591,-154.494341,0.0003996,2]
[325293094,1714684247600,-154.494337,0.0003996,2]
[325293096,1714684247610,-151.0,0.0003996,2]
[325293098,1714684247619,-193.802651,0.0003996,2]
[325293100,1714684247629,-193.802651,0.0003996,2]
[325293102,1714684247638,-193.802651,0.0003996,2]
[325293104,1714684247649,-193.802654,0.0003996,2]
[325293106,1714684247658,-399.399469,0.0003996,2]
[325293108,1714684247667,-399.399469,0.0003996,2]
[325293110,1714684247676,-399.399469,0.0003996,2]
[325293112,1714684247685,-743.287968,0.0003996,2]
[325293114,1714684247694,-399.399475,0.0003996,2]
[325293116,1714684247703,-743.287968,0.0003996,2]
[325293118,1714684247713,-743.287968,0.0003996,2]
[325293120,1714684247722,-743.287977,0.0003996,2]
[325293122,1714684247731,-151.0,0.0003996,2]
[325293124,1714684247740,-151.0,0.0003996,2]
[325293125,1714684247751,-264.475327,0.0003996,2]
[325293127,1714684247760,-244.475514,0.0003996,2]
[325293129,1714684247769,-244.475514,0.0003996,2]
[325293131,1714684247780,-244.475514,0.0003996,2]
[325293133,1714684247789,-244.475522,0.0003996,2]
[325293135,1714684247798,-151.0,0.0003996,2]
[325293137,1714684247807,-271.21501,0.0003996,2]
[325293139,1714684247816,-185.114727,0.0003996,2]
[325293141,1714684247826,-185.114727,0.0003996,2]
[325293143,1714684247835,-185.114727,0.0003996,2]
[325293145,1714684247843,-185.114728,0.0003996,2]
[325293147,1714684247852,-2776.00539,0.0003996,2]
[325293149,1714684247862,-2776.005384,0.0003996,2]
[325293151,1714684247871,-255.560288,0.0003996,2]